Cogmind - Beta 17.1 @@@ ROGUE MODE // 2026.08.30 @ 02:10:05 Player: TheSkyeDoctor Result: Destroyed by S-10 Pest with Light Assault Rifle Performance ------------- Evolutions (2) 1000 Regions Visited (4) 800 Robots Destroyed (36) 180 Value Destroyed (805) 805 Prototype IDs (2) 40 Alien Tech Used (0) 0 Bonus (0) 0 TOTAL SCORE: 2825 Bonus ------- None Cogmind --------- Core Integrity 0/550 Matter 300/300 Energy 100/100 System Corruption 0% Temperature Cool (0) Movement Walking (120) Location -8/Materials Parts ------- > --- POWER (1) -------- (None) > --- PROPULSION (3) --- Improved Carbon-fiber Leg Improved Carbon-fiber Leg > --- UTILITY (3) ------ Improved Cooling System > --- WEAPON (4) ------- Heavy Mace > --- INVENTORY (5) ---- High-capacity Matter Pod (200) Experimental Sensor Array Improved Terrain Scanner Advanced Terrain Scan Processor Improved Medium Armor Plating Peak State ------------ > --- POWER ------------ (None) > --- PROPULSION ------- Advanced Treads > --- UTILITY ---------- High-capacity Storage Unit Experimental Sensor Array Advanced Terrain Scan Processor > --- WEAPON ----------- Heavy Particle Cannon Advanced EMP Blaster Heavy Hammer > --- INVENTORY -------- Improved Cooling System Improved Cooling System High-capacity Matter Pod Improved Terrain Scanner Advanced Terrain Scan Processor Improved Medium Armor Plating Improved Medium Armor Plating Field Laser Datajack Heavy Mace [Rating: 29] Favorites ----------- Power Ion Engine Engine Ion Engine Power Core Light Nuclear Core Propulsion Light Treads Treads Light Treads Leg Improved Carbon-fiber Leg Utility High-capacity Storage Unit Device Seismic Detector Storage High-capacity Storage Unit Processor Advanced Terrain Scan Processor Protection Light Armor Plating Weapon Heavy Hammer Energy Gun Medium Laser Energy Cannon Heavy Particle Cannon Ballistic Gun Assault Rifle Launcher Rocket Launcher Impact Weapon Heavy Hammer Special Melee Weapon Datajack Build | -11 -10 -9 -9 -8 ------- Run | Yrd Mat Mat Min Mat Slots Evolved 4 | . . 2 . 2 Power . | . . . . . Propulsion 1 | . . . . 1 Utility 1 | . . . . 1 Weapon 2 | . . 2 . . Parts Attached 35 | 8 1 5 2 19 Power 4 | 1 . 1 . 2 Engine 3 | 1 . 1 . 1 Core 1 | . . . . 1 Reactor . | . . . . . Propulsion 8 | 2 . . . 6 Treads 5 | 2 . . . 3 Leg 3 | . . . . 3 Wheel . | . . . . . Hover . | . . . . . Flight . | . . . . . Utility 11 | 2 1 1 1 6 Device 3 | 1 . . 1 1 Storage 3 | 1 1 1 . . Processor 1 | . . . . 1 Hackware . | . . . . . Protection 4 | . . . . 4 Artifact . | . . . . . Weapon 12 | 3 . 3 1 5 Energy Gun 3 | 2 . . . 1 Energy Cannon 1 | . . . . 1 Ballistic Gun 3 | 1 . 2 . . Ballistic Cannon . | . . . . . Launcher 2 | . . . 1 1 Special Weapon . | . . . . . Impact Weapon 2 | . . 1 . 1 Slashing Weapon . | . . . . . Piercing Weapon . | . . . . . Special Melee Weapon 1 | . . . . 1 Unidentified Prototypes 2 | . . . 1 1 Parts Lost 26 | . . 9 . 17 Power 4 | . . 2 . 2 Propulsion 6 | . . 2 . 4 Utility 5 | . . 1 . 4 Weapon 11 | . . 4 . 7 Highest Loss Streak 10 | . . 5 . 10 To Critical Strikes . | . . . . . Average Backups 5 | 2 4 5 4 6 Power . | . 1 . . . Propulsion . | . . . . . Utility 2 | . 1 2 2 3 Weapon 1 | . 1 1 1 1 Tool/Special . | . . . . . Unused Backups 9 | . . 1 1 7 Power . | . . . . . Propulsion . | . . . . . Utility 6 | . . . 1 5 Weapon 3 | . . 1 . 2 Tool/Special . | . . . . . Average Slot Usage (%) 73 | . 99 89 28 58 Engine 5 | . 14 10 . . Treads 15 | . 27 20 . 9 Leg 1 | . . . . 3 Device 9 | . 13 10 4 8 Storage 9 | . 14 11 2 6 Protection 1 | . . . . 3 Energy Gun 8 | . 14 17 . 1 Energy Cannon 3 | . . . . 6 Ballistic Gun 8 | . 14 13 11 3 Launcher 3 | . . . . 6 Impact Weapon 6 | . . 6 11 7 Peak Build Rating 29 | 7 7 11 14 29 Average Rating 13 | 5 6 9 6 21 On Entrance 6 | . 7 7 4 14 Avg Prop Armor Cover (%) . | . . . . . Naked Turns . | . . . . . Heaviest Build 58 | 15 30 51 44 58 Greatest Support 54 | 40 40 40 3 54 Greatest Overweight (x) 18 | . . 14 14 18 Average Overweight (x) . | . . . 1 1 Largest Inventory Capacity 20 | 8 15 20 20 20 Average Capacity 14 | 7 8 16 6 16 Most Carried 13 | 3 6 6 5 13 Average Carried 5 | 2 4 5 4 6 Final Capacity 20 | 8 15 20 5 5 Final Carried 5 | 3 5 5 5 5 Class Distribution -------------------- 64% | Mutant 20% | Gunner 7% | Skirmisher 7% | Tank Dominant Class ---------------- Mutant | -10/Materials Gunner | -9/Materials Mutant | -9/Mines Mutant | -8/Materials Resources | -11 -10 -9 -9 -8 ----------- Run | Yrd Mat Mat Min Mat Matter Collected 879 | 301 103 111 152 212 Remotely . | . . . . . Salvage Created 1117 | 132 282 242 . 461 Parts 76 | 10 21 20 . 25 Haulers Intercepted 1 | . . . . 1 Recyclers Shooed 1 | . . 1 . . Parts Field Recycled . | . . . . . Retrieved Matter . | . . . . . Parts Self-Destructed . | . . . . . Prevented . | . . . . . Parts Restored . | . . . . . Kills | -11 -10 -9 -9 -8 ------- Run | Yrd Mat Mat Min Mat Combat Hostiles Destroyed 26 | . 9 9 . 8 Melee 1 | . . . . 1 Guns 18 | . 9 9 . . Cannons 2 | . . . . 2 AOE 3 | . . . . 3 Classes Destroyed 10 | 2 3 2 . 3 Builder 1 | . . . . 1 Tunneler 3 | 3 . . . . Hauler 1 | . . . . 1 Recycler 2 | 1 . . . 1 Mechanic 1 | . . 1 . . Operator 1 | . . . . 1 Watcher 1 | . 1 . . . Swarmer 12 | . 4 6 . 2 Grunt 9 | . 5 2 . 2 Sentry 5 | . . 1 . 4 Best Kill Streak 5 | 2 5 3 . 5 Combat Bots Only 5 | . 5 3 . 4 Max Kills in Single Turn 4 | 1 1 2 . 4 Gunslinging 1 | . . 1 . . Exploded 3 | . . . . 3 Melee 1 | . . . . 1 Uniques/NPCs Destroyed . | . . . . . Combat | -11 -10 -9 -9 -8 -------- Run | Yrd Mat Mat Min Mat Hostile Shots Fired 451 | . 43 80 . 328 Missed 131 | . 12 20 . 99 Hits 320 | . 31 60 . 229 Projectile 320 | . 31 60 . 229 Critical Strikes 12 | . . 1 . 11 Damage Taken 3579 | . 279 578 . 2722 Core 643 | . 35 50 . 558 Absorbed by Shields . | . . . . . Core Remaining (%) 91 | 100 86 . 87 . Volleys Fired 81 | 7 21 27 . 26 Largest 3 | 2 2 3 . 3 Hottest 128 | 70 70 110 . 128 Shots Fired 156 | 14 42 65 . 35 Gun 137 | 14 42 65 . 16 Cannon 13 | . . . . 13 Launcher 6 | . . . . 6 Special . | . . . . . Kinetic 60 | 7 21 28 . 4 Thermal 80 | 7 21 27 . 25 Explosive 4 | . . . . 4 Electromagnetic 12 | . . 10 . 2 Robot Hit Streak 18 | 4 10 18 . 10 Robot Miss Streak 5 | 1 5 5 . 1 Penetration Max . | . . . . . Secondary Targets 4 | . 1 3 . . Max Gunslinging Chain 2 | . 1 2 . . Shots Hit Robots 112 | 9 24 42 . 37 Core Hits 51 | 5 16 15 . 15 Critical Kills 1 | . . 1 . . Critical Parts Destroyed 2 | . . . . 2 Critical Strikes 8 | . 2 4 . 2 Burn 5 | . 2 3 . . Destroy 1 | . . 1 . . Smash 2 | . . . . 2 Melee Attacks 27 | . . 10 . 17 Impact 26 | . . 10 . 16 Slashing . | . . . . . Piercing . | . . . . . Sneak Attacks 3 | . . 1 . 2 Combat Hostiles . | . . . . . Follow-up Attacks . | . . . . . Damage Inflicted 2108 | 117 292 487 . 1212 Guns 1040 | 117 292 439 . 192 Cannons 325 | . . . . 325 Explosions 228 | . . . . 228 Melee 515 | . . 48 . 467 Ramming . | . . . . . Kinetic 302 | 29 118 145 . 10 Thermal 1056 | 88 174 250 . 544 Explosive 48 | . . . . 48 Electromagnetic 187 | . . 44 . 143 Impact 515 | . . 48 . 467 Slashing . | . . . . . Piercing . | . . . . . Highest Corruption 1 | . 1 . . . Average Corruption 1 | . 1 . . . Corruption Purged . | . . . . . Corruption Blocked . | . . . . . Effects 1 | . 1 . . . Heat Flow Errors 1 | . 1 . . . Overload Shots . | . . . . . Overflow Damage 214 | . . . . 214 Projectiles 15 | . . . . 15 Explosions . | . . . . . Melee 199 | . . . . 199 Knockbacks 1 | . . . . 1 Impact 1 | . . . . 1 Kinetic . | . . . . . Secondary . | . . . . . Self-Inflicted Damage 87 | . . . . 87 Shots 3 | . . . . 3 Rammed . | . . . . . Targets Rammed . | . . . . . Kicked . | . . . . . Crushed . | . . . . . Highest Temperature 206 | 45 109 185 . 206 Average Temperature 54 | 18 35 70 . 64 Received Heat Transfer 1059 | . 63 141 . 855 Siege Activations . | . . . . . Martial Activations . | . . . . . Shielding Activations . | . . . . . Robots Disrupted . | . . . . . Combat Hostiles . | . . . . . Robots Corrupted 2 | . . . . 2 Combat Hostiles 1 | . . . . 1 Parts Fried . | . . . . . Impact Corruptions 5 | . . . . 5 Robots Melted 1 | . . . . 1 Combat Hostiles 1 | . . . . 1 Parts Melted 4 | . 1 2 . 1 Heat Transferred 2875 | 259 666 962 . 988 Parts Sabotaged . | . . . . . Parts Stolen . | . . . . . Parts Stripped . | . . . . . Power Chain Reactions 1 | . . . . 1 Alert | -11 -10 -9 -9 -8 ------- Run | Yrd Mat Mat Min Mat Maximum Alert Level . | . . . . . Low Security (%) 100 | 100 100 100 100 100 Level 1 . | . . . . . Level 2 . | . . . . . Level 3 . | . . . . . Level 4 . | . . . . . Level 5 . | . . . . . High Security . | . . . . . Max Security . | . . . . . Peak Influence 194 | 5 194 120 15 103 Initial 83 | . . 83 15 . Average 33 | 1 59 52 5 21 Influence Increases 861 | 20 289 230 . 322 Destroy 0b10 Robot/C 520 | . 180 180 . 160 Destroy 0b10 Robot/NC 50 | 20 5 5 . 20 Destroy Leader 124 | . 42 30 . 52 Successful Hack 7 | . . 7 . . Disable Machine 45 | . . . . 45 Destroy Structure 40 | . 2 8 . 30 Lose Combat Pursuer 75 | . 60 . . 15 Influence Decreases 861 | 20 90 388 41 322 Entered New Map 142 | . . 116 26 . Time Decay 519 | 20 90 191 15 203 Lost Part 200 | . . 81 . 119 Squads Dispatched 3 | . 1 1 . 1 Investigation 1 | . 1 . . . Extermination . | . . . . . Reinforcement 2 | . . 1 . 1 Assault . | . . . . . Garrison . | . . . . . Intercept . | . . . . . Searches Triggered . | . . . . . Construction Impeded . | . . . . . Haulers Reinforced . | . . . . . Active Scanning Responses . | . . . . . Cargo Convoy Interrupts . | . . . . . Stealth | -11 -10 -9 -9 -8 --------- Run | Yrd Mat Mat Min Mat Distress Signals 7 | . 3 2 . 2 Communications Jammed . | . . . . . Distress Signals . | . . . . . Times Spotted 59 | . 14 22 . 23 Peak Tracking Total 9 | . 5 5 . 9 Tactical Retreats 4 | . 3 . . 1 Traps | -11 -10 -9 -9 -8 ------- Run | Yrd Mat Mat Min Mat Traps Triggered 3 | . 3 . . . Indirectly . | . . . . . Trap Hack Attempts . | . . . . . Triggered . | . . . . . Disarmed . | . . . . . Reprogrammed . | . . . . . Reused . | . . . . . Traps Extracted . | . . . . . Installed . | . . . . . Triggered . | . . . . . Machines | -11 -10 -9 -9 -8 ---------- Run | Yrd Mat Mat Min Mat Machines Disabled 3 | . . . . 3 Max in Single Turn 2 | . . . . 2 Machines Repaired . | . . . . . Machines Dismantled . | . . . . . Machines Sabotaged . | . . . . . Overloaded Fab Kills . | . . . . . Hacking | -11 -10 -9 -9 -8 --------- Run | Yrd Mat Mat Min Mat Machines Accessed 2 | . . 1 . 1 Terminals 1 | . . 1 . . Fabricators . | . . . . . Repair Stations . | . . . . . Recycling Units . | . . . . . Scanalyzers 1 | . . . . 1 Garrison Access . | . . . . . Total Hacks 4 | . . 3 . 1 Successful 2 | . . 1 . 1 Failed 2 | . . 2 . . Catastrophic 1 | . . 1 . . Database Lockouts . | . . . . . Manual 2 | . . 2 . . Terminals 3 | . . 3 . . Fabricators . | . . . . . Repair Stations . | . . . . . Recycling Units . | . . . . . Scanalyzers 1 | . . . . 1 Garrison Access . | . . . . . Terminal Hacks 1 | . . 1 . . Branch Access Points 1 | . . 1 . . Fabricator Hacks . | . . . . . Repair Station Hacks . | . . . . . Recycling Unit Hacks . | . . . . . Scanalyzer 1 | . . . . 1 Retrieve Study 1 | . . . . 1 Garrison Access Hacks . | . . . . . Unauthorized Hacks . | . . . . . Terminals . | . . . . . Fabricators . | . . . . . Repair Stations . | . . . . . Recycling Units . | . . . . . Scanalyzers . | . . . . . Garrison Access . | . . . . . Data Cores Recovered . | . . . . . Used . | . . . . . Hacking Detections 1 | . . 1 . . Full Trace Events . | . . . . . Feedback Events . | . . . . . Feedback Blocked . | . . . . . Robot Schematics Acquired . | . . . . . Robots Built . | . . . . . Authchips . | . . . . . Time . | . . . . . Total Robot Build Rating . | . . . . . Part Schematics Acquired . | . . . . . Parts Built . | . . . . . Authchips . | . . . . . Time . | . . . . . Total Part Build Rating . | . . . . . Part Studies Acquired 1 | . . . . 1 Parts Repaired . | . . . . . Time . | . . . . . Parts Recycled . | . . . . . Recycled Matter . | . . . . . Retrieved Matter . | . . . . . Retrieved Components . | . . . . . Parts Scanalyzed . | . . . . . Part Schematics Acquired . | . . . . . Parts Damaged . | . . . . . Bothacking | -11 -10 -9 -9 -8 ------------ Run | Yrd Mat Mat Min Mat Used RIF Installer . | . . . . . Robots Hacked 1 | . . . . 1 Non-combat 1 | . . . . 1 Combat . | . . . . . Robot Hacks Applied 1 | . . . . 1 parse_system 1 | . . . . 1 Relay Couplers Released . | . . . . . Fabnet Peak Effective % . | . . . . . Robots Rewired . | . . . . . Allies Hacked . | . . . . . Hacks Repelled . | . . . . . Allies | -11 -10 -9 -9 -8 -------- Run | Yrd Mat Mat Min Mat Total Allies . | . . . . . Largest Group . | . . . . . Highest-Rated Group . | . . . . . Highest-Rated Ally . | . . . . . Total Orders . | . . . . . Ally Attacks . | . . . . . Total Damage . | . . . . . Kills . | . . . . . Allies Corrupted . | . . . . . Allies Melted . | . . . . . Intel | -11 -10 -9 -9 -8 ------- Run | Yrd Mat Mat Min Mat Active Infowar (turns) 1450 | 20 337 448 29 616 Sensors 645 | . . . 29 616 Seismic 805 | 20 337 448 . . Robot Analysis Total . | . . . . . Derelict Logs Recovered . | . . . . . Drone Launches . | . . . . . Drone Recoveries . | . . . . . Exploration | -11 -10 -9 -9 -8 ------------- Run | Yrd Mat Mat Min Mat Turns Passed 1908 | 190 347 454 76 841 Spaces Moved 857 | 103 170 182 61 341 Core 94 | 8 . 1 61 24 Treads 680 | 95 170 181 . 234 Legs 83 | . . . . 83 Wheels . | . . . . . Hover . | . . . . . Flight . | . . . . . Fastest Speed 50 | 50 160 160 100 100 Average Speed 174 | 151 160 186 112 193 Slowest Speed 950 | 160 160 750 750 950 Overloaded Moves . | . . . . . Propulsion Burnouts . | . . . . . Robots Hopped . | . . . . . Potential Cave-ins . | . . . . . Cave-ins Triggered . | . . . . . Exploration Rate (%) 23 | 5 37 25 17 34 Regions Visited 4 Branch Regions 1 Pre-discovered Areas . | . . . . . Known Exits Taken 1 | . . 1 . . Unknown Exits Taken 3 | 1 1 . 1 . Scrap Searched . | . . . . . Spaces Dug 8 | . . 8 . . Terrain Destroyed 39 | . . 8 . 31 Melee 8 | . . 8 . . Projectile . | . . . . . AOE 31 | . . . . 31 Terrain Rammed . | . . . . . Walls Destroyed . | . . . . . Machines Disabled . | . . . . . Actions | -11 -10 -9 -9 -8 --------- Run | Yrd Mat Mat Min Mat Total 1089 | 120 202 237 69 461 Wait 56 | . 5 6 5 40 Move 853 | 102 169 181 60 341 Hop . | . . . . . Pick Up 18 | 2 2 3 . 11 Fast Attach 27 | 8 3 3 2 11 Attach 11 | . . 3 . 8 Detach 4 | 1 . 1 1 1 Swap 3 | . 1 1 . 1 Drop 9 | . 1 2 1 5 Fire 81 | 7 21 27 . 26 Melee 27 | . . 10 . 17 Ram . | . . . . . Kick . | . . . . . Crush . | . . . . . Escape Stasis . | . . . . . Rewire . | . . . . . Trap . | . . . . . Miscellaneous . | . . . . . Route ------- -11/Scrapyard -10/Materials -9/Materials (discovered 2 exits: *Min x2) -9/Mines -8/Materials History --------- Turn | Location | Event 5 | -11/Scrapyard | Discovered new exit (range 16) 191 | -11/Scrapyard | Entered Materials 306 | -10/Materials | Build established: Mutant 530 | -10/Materials | Discovered new exit (range 5) 538 | -10/Materials | Entered another Materials area 538 | -9/Materials | Evolved 2 slots: Weapon x2 665 | -9/Materials | Identified exit to Mines 992 | -9/Materials | Entered Mines 1020 | -9/Mines | Lost 5 parts (1p1n1u2w) 1037 | -9/Mines | Found a damaged Exp. Sensor Array with a note attached 1039 | -9/Mines | Found Prototype Device 1039 | -9/Mines | Identified Exp. Sensor Array 1044 | -9/Mines | Discovered new exit (range 9) 1058 | -9/Mines | Received a Rocket Launcher from a helpful Derelict 1068 | -9/Mines | Entered Materials 1068 | -8/Materials | Evolved 2 slots: Propulsion x1, Utility x1 1444 | -8/Materials | Lost 4 parts (1n1u2w) 1754 | -8/Materials | Core integrity fell below 50% 1816 | -8/Materials | Lost 10 parts (1p2n3u4w) 1824 | -8/Materials | Core integrity fell below 20% 1909 | -8/Materials | Destroyed by S-10 Pest with Light Assault Rifle Last Messages --------------- 01838_ Acquired Lgt. Nuclear Core. 01872_ W-25 Informer sends out distress signal. 01876_ K-01 Serf cleans the Nuclear Reactor. 01878_ Acquired Hvy. Mace. 01880_ K-01 Serf cleans the Nuclear Reactor. 01884_ Sneak attack on A-02 Transporter. 01884_ Destroyed Weight Redist. System. 01884_ Destroyed Transport Network Coupler. 01884_ A-02 Transporter system corrupted by crushing effect. 01885_ A-02 Transporter system terminally corrupted. 01887_ Acquired 44 matter. 01888_ K-01 Serf collects debris. 01891_ Imp. Carbon-fiber Leg destroyed. 01893_ K-01 Serf collects debris. 01894_ S-10 Pest destroyed. 01896_ K-01 Serf cleans the Material Processor. 01899_ Lgt. Nuclear Core destroyed. 01904_ S-10 Pest destroyed. Map ----- +----------------------------------------------------+ | ???????????????????????????????????# #? ??? | | ??????????????????????????##+###???# #? """"" ?? | | ?????????????????????????? ???# #??"""""??? | | ??????????????????????????? #??# #??"""""??? | | ???????????????????????????? #??# #??? ???? | | ????????????????????????????# #??# #???##????? | | ????????????????????????????# #??# #?????????? | | ????????????????????????????# #??# ########### | | ????????????????????????????# #### | | ????????????????????????????# #? | | ????????????????????????????# #? | | ????????????????????????????# !!! #? | | ???????????????????????###??# ! ! #? | | ???????????????????????""" ?# *!! #? | | ??????????????????????"""""?# """ """ """ "# | | ????????????????????? """"" # """ """ """ T# | | ??????????????????? """"" # """ """ """ "# | | ??????????????????? """ + ## | | ??????????????????# # ? | | ??????????????????# # #####"T"#### | | ??????????????????# ?# #???#####??? ##? | | ??????????????????#########?# #??????????? #?? | | ??????????????## ############ [ #??????????? #?? | | ??????????????# ss %*#???????????? #?? | | ??????????????# =%=#???????????? #?? | | ??????????????+ @ #????????????? #?? | | ??????????????###########/#### ##????????????????? | | ???????????????????????? ??# #?????????????????? | | ???????????????????????? *??# #?????????????????? | | ??????????????????????? ! ?? #?????????????????? | | ??????????????????????? ==?? #?????????????????? | | ??????????????????????#] ===? #?????????????????? | | ??????????????????????# ===? #?????????????????? | | ??????????????????????########+#?????????????????? | | ?????????????????????????????????????????????????? | | ?????????????????????????????????????????????????? | | ?????????????????????????????????????????????????? | | ?????????????????????????????????????????????????? | | ?????????????????????????????????????????????????? | | ?????????????????????????????????????????????????? | | ?????????????????????????????????????????????????? | | ?????????????????????????????????????????????????? | | ?????????????????????????????????????????????????? | | ?????????????????????????????????????????????????? | | ?????????????????????????????????????????????????? | | ?????????????????????????????????????????????????? | | ?????????????????????????????????????????????????? | | ?????????????????????????????????????????????????? | | ?????????????????????????????????????????????????? | | ?????????????????????????????????????????????????? | +----------------------------------------------------+ Best States ------------- Heat Dissipation 58 Energy Generation 14 Energy Capacity 265 Matter Stores 300 Matter Capacity 300 Sight Range 16 Robot Scan Range 20 Terrain Scan Density 210 Armor Coverage 450 Evasion (%) 55 Recoil Reduction 2 Item Schematics ----------------- None Robot Schematics ------------------ None Fabricated ------------ Nothing Repaired ---------- Nothing Studied --------- Adv. Treads | -8/Materials | Hacked Alien Tech Used ----------------- None Achievements -------------- None Challenges ------------ None Game ------ Seed StorageMetaCarapace Manual? 0 Play Time 00:16:14 Cumulative 181.6 hours Start 2026.08.29 @ 22:17:00 End 2026.08.30 @ 02:10:05 Sessions 1 Manual Loads 0 Difficulty Rogue Special Mode None Game No. 358 Rogue 358 Adventurer 0 Explorer 0 Win Type - Total 2 Types 2/0/0/0/0/0/0/0/0/0 Lore% 59 Gallery% 60 Achievement% 46 Wizard Run 0 Options --------- Layout 2 ASCII 0 Keyboard 1 Movement Arrows Keybinds 0 Fullscreen 1 Font 24/Smallcaps Map View 50x44 Zoom Use 0% Tactical HUD 1 Map Filters NONE Filters NONE Steam 1 RUN: 15e676c0-e626-4f26-9033-c1170e9343f4